fUSD/lending_fUSD_20240530
["ID","MTS","AMOUNT","RATE_DAILY","PERIOD"]
[328237320,1717083037779,-2492.88,0.00033299,11]
[328237321,1717083037788,-600.53,0.00033299,11]
[328237322,1717083037798,-600.53,0.00033299,11]
[328237323,1717083037808,-600.53,0.00033299,11]
[328237324,1717083037819,-2492.88,0.00033299,11]
[328237325,1717083037828,-600.53,0.00033299,11]
[328237326,1717083037838,-2492.88,0.00033299,11]
[328237327,1717083037848,-600.53,0.00033299,11]
[328237328,1717083037858,-2492.88,0.00033299,11]
[328237329,1717083037868,-2492.88,0.00033299,11]
[328237330,1717083037878,-600.53,0.00033299,11]
[328237331,1717083037887,-2492.88,0.00033299,11]
[328237332,1717083037896,-600.53,0.00033299,11]
[328237333,1717083037906,-2492.88,0.00033299,11]
[328237334,1717083037916,-600.53,0.00033299,11]
[328237335,1717083037926,-2492.88,0.00033299,11]
[328237336,1717083037936,-600.53,0.00033299,11]
[328237337,1717083037946,-600.53,0.00033299,11]
[328237338,1717083037956,-2492.88,0.00033299,11]
[328237339,1717083037966,-2492.88,0.00033299,11]
[328237340,1717083037976,-600.53,0.00033299,11]
[328237342,1717083037986,-542.17,0.00033299,11]
[328237343,1717083037995,-2492.88,0.00033299,11]
[328237344,1717083038007,-600.53,0.00033299,11]
[328237346,1717083038018,-542.17,0.00033299,11]
[328237348,1717083038028,-2492.88,0.00033299,11]
[328237350,1717083038038,-600.53,0.00033299,11]
[328237351,1717083038048,-542.17,0.00033299,11]
[328237352,1717083038057,-2492.88,0.00033299,11]
[328237353,1717083038066,-600.53,0.00033299,11]
[328237354,1717083038076,-542.17,0.00033299,11]
[328237355,1717083038089,-2492.88,0.00033299,11]
[328237356,1717083038099,-600.53,0.00033299,11]
[328237357,1717083038109,-542.17,0.00033299,11]
[328237358,1717083038119,-2492.88,0.00033299,11]
[328237359,1717083038128,-600.53,0.00033299,11]
[328237360,1717083038138,-542.17,0.00033299,11]
[328237361,1717083038147,-2492.88,0.00033299,11]
[328237362,1717083038157,-600.53,0.00033299,11]
[328237363,1717083038167,-542.17,0.00033299,11]
[328237364,1717083038177,-2492.88,0.00033299,11]
[328237365,1717083038187,-542.17,0.00033299,11]
[328237366,1717083038198,-600.53,0.00033299,11]
[328237367,1717083038208,-2492.88,0.00033299,11]
[328237368,1717083038219,-600.53,0.00033299,11]
[328237369,1717083038228,-2492.88,0.00033299,11]
[328237370,1717083038238,-542.17,0.00033299,11]
[328237371,1717083038248,-2492.98458971,0.00033299,11]
[328237372,1717083038258,-600.72,0.00033299,11]
[328237373,1717083038267,-542.17,0.00033299,11]
[328237374,1717083038277,-542.17,0.00033299,11]
[328237375,1717083038286,-542.17,0.00033299,11]
[328237377,1717083038296,-542.17,0.00033299,11]
[328237378,1717083038306,-542.17,0.00033299,11]
[328237379,1717083038315,-542.17,0.00033299,11]
[328237380,1717083038325,-542.17,0.00033299,11]
[328237381,1717083038334,-542.17,0.00033299,11]
[328237382,1717083038343,-542.17,0.00033299,11]
[328237383,1717083038353,-542.17,0.00033299,11]
[328237384,1717083038362,-542.4,0.00033299,11]
[328237385,1717083038372,-843.37,0.00033299,11]
[328237386,1717083038382,-843.37,0.00033299,11]
[328237387,1717083038391,-843.37,0.00033299,11]
[328237388,1717083038401,-843.37,0.00033299,11]
[328237389,1717083038410,-843.37,0.00033299,11]
[328237390,1717083038420,-843.37,0.00033299,11]
[328237391,1717083038430,-843.37,0.00033299,11]
[328237392,1717083038439,-843.37,0.00033299,11]
[328237393,1717083038448,-843.37,0.00033299,11]
[328237394,1717083038458,-843.37,0.00033299,11]
[328237395,1717083038467,-843.37,0.00033299,11]
[328237396,1717083038477,-843.37,0.00033299,11]
[328237397,1717083038486,-843.37,0.00033299,11]
[328237398,1717083038496,-843.37,0.00033299,11]
[328237399,1717083038507,-843.37,0.00033299,11]
[328237400,1717083038517,-843.37,0.00033299,11]
[328237401,1717083038527,-843.37,0.00033299,11]
[328237402,1717083038537,-843.37,0.00033299,11]
[328237403,1717083038546,-843.37,0.00033299,11]
[328237404,1717083038555,-843.38895072,0.00033299,11]
[328237405,1717083038566,-200.0,0.00033299,2]
[328237407,1717083038576,-500.0,0.00033299,11]
[328237408,1717083038584,-500.0,0.00033299,11]
[328237409,1717083038593,-500.0,0.00033299,11]
[328237410,1717083038603,-500.0,0.00033299,11]
[328237411,1717083038612,-500.0,0.00033299,11]
[328237412,1717083038622,-500.0,0.00033299,11]
[328237413,1717083038632,-500.0,0.00033299,11]
[328237414,1717083038642,-500.0,0.00033299,11]
[328237415,1717083038651,-500.0,0.00033299,11]
[328237416,1717083038661,-500.0,0.00033299,11]
[328237417,1717083038670,-500.0,0.00033299,11]
[328237418,1717083038815,-500.0,0.00033299,11]
[328237419,1717083038825,-500.0,0.00033299,11]
[328237420,1717083038834,-500.0,0.00033299,11]
[328237421,1717083038844,-500.0,0.00033299,11]
[328237422,1717083038853,-500.0,0.00033299,11]
[328237423,1717083038863,-553.38273778,0.00033299,11]
[328237424,1717083038872,-1681.66,0.00033299,11]
[328237425,1717083038882,-1681.66,0.00033299,11]
[328237426,1717083038891,-1681.66,0.00033299,11]
[328237427,1717083038900,-1681.66,0.00033299,11]
[328237428,1717083038910,-1681.66,0.00033299,11]
[328237429,1717083038919,-1681.66,0.00033299,11]
[328237430,1717083038929,-1681.66,0.00033299,11]
[328237431,1717083038939,-1681.66,0.00033299,11]
[328237432,1717083038948,-1681.66,0.00033299,11]
[328237433,1717083038957,-1681.66,0.00033299,11]
[328237434,1717083038966,-1681.66,0.00033299,11]
[328237435,1717083038976,-1681.66,0.00033299,11]
[328237436,1717083038985,-1681.66,0.00033299,11]
[328237437,1717083038995,-1681.66,0.00033299,11]
[328237438,1717083039008,-1681.66,0.00033299,11]
[328237439,1717083039018,-1681.66,0.00033299,11]
[328237440,1717083039028,-1681.66,0.00033299,11]
[328237441,1717083039037,-1681.66,0.00033299,11]
[328237442,1717083039047,-1681.66,0.00033299,11]
[328237443,1717083039059,-1681.81,0.00033299,11]
[328237444,1717083039071,-1700.46033342,0.000333,5]
[328237445,1717083039082,-5969.48062072,0.000333,13]
[328237446,1717083039095,-325643.92888661,0.000333,5]
[328237447,1717083039265,-150.0,0.00032983,2]
[328237448,1717083039275,-150.0,0.00033126,2]
[328237449,1717083039285,-3104.98868,0.000333,5]
[328237450,1717083039298,-286655.33669488,0.000333,5]
[328237451,1717083039314,-4147.36848739,0.000333,5]
[328237452,1717083039637,-150.0,0.00032934,2]
[328237453,1717083039647,-150.0,0.00032942,2]
[328237454,1717083039657,-150.0,0.00032963,2]
[328237455,1717083039668,-12.88994626,0.00032972,2]
[328237456,1717083039695,-137.11005374,0.00032972,2]
[328237457,1717083039705,-150.0,0.00032974,2]
[328237458,1717083039714,-150.0,0.00032974,2]
[328237459,1717083039725,-150.0,0.00032975,2]
[328237460,1717083039735,-150.0,0.00032975,2]
[328237461,1717083039745,-150.0,0.00032976,2]
[328237462,1717083039755,-150.0,0.00032984,2]
[328237463,1717083039765,-150.0,0.00032993,2]
[328237464,1717083039775,-150.0,0.00033001,2]
[328237465,1717083039785,-150.0,0.00033008,2]
[328237466,1717083039795,-150.0,0.00033008,2]
[328237467,1717083039805,-150.0,0.0003301,2]
[328237468,1717083039816,-150.0,0.0003305,2]
[328237469,1717083039826,-79.40447364,0.00033058,2]
[328237470,1717083039838,-70.59552636,0.00033058,2]
[328237471,1717083039847,-150.0,0.00033059,2]
[328237472,1717083039857,-150.0,0.00033064,2]
[328237473,1717083039868,-150.0,0.00033073,2]
[328237474,1717083039878,-150.0,0.00033077,2]
[328237475,1717083039889,-150.0,0.0003308,2]
[328237476,1717083039899,-150.0,0.00033083,2]
[328237477,1717083039909,-150.0,0.00033089,2]
[328237478,1717083039919,-150.0,0.00033093,2]
[328237479,1717083039929,-150.0,0.00033097,2]
[328237480,1717083039939,-150.0,0.00033105,2]
[328237481,1717083039948,-150.0,0.0003311,2]
[328237482,1717083039958,-150.0,0.00033117,2]
[328237483,1717083039968,-150.0,0.00033128,2]
[328237484,1717083039978,-150.0,0.00033134,2]
[328237485,1717083039988,-150.0,0.00033134,2]
[328237486,1717083039998,-150.0,0.00033136,2]
[328237487,1717083040010,-150.0,0.00033141,2]
[328237488,1717083040020,-150.0,0.00033146,2]
[328237489,1717083040030,-150.0,0.00033149,2]
[328237490,1717083040040,-119.53796359,0.00033151,2]
[328237491,1717083040064,-30.46203641,0.00033151,2]
[328237492,1717083040079,-150.0,0.00033154,2]
[328237493,1717083040093,-150.0,0.00033154,2]
[328237494,1717083040103,-150.0,0.00033164,2]
[328237495,1717083040114,-150.0,0.00033166,2]
[328237496,1717083040124,-150.0,0.00033172,2]
[328237497,1717083040135,-150.0,0.00033189,2]
[328237498,1717083040149,-150.0,0.00033192,2]
[328237499,1717083040163,-150.0,0.00033193,2]
[328237500,1717083040176,-150.0,0.00033195,2]
[328237501,1717083040191,-150.0,0.00033199,2]
[328237502,1717083040204,-150.0,0.00033201,2]
[328237503,1717083040216,-4096.55796351,0.000333,5]
[328237504,1717083040592,-150.0,0.00021883,2]
[328237505,1717083040604,-150.0,0.00032107,2]
[328237506,1717083040616,-150.0,0.00032132,2]
[328237508,1717083040629,-155.69,0.0003236,2]
[328237510,1717083040641,-150.0,0.00032853,2]
[328237512,1717083040653,-150.0,0.00032854,2]
[328237514,1717083040665,-150.0,0.00032907,2]
[328237515,1717083040677,-150.0,0.00032921,2]
[328237516,1717083040688,-150.0,0.00032923,2]
[328237518,1717083040698,-150.0,0.00032925,2]
[328237519,1717083040710,-150.0,0.00032932,2]
[328237520,1717083040722,-150.0,0.00032952,2]
[328237522,1717083040735,-150.0,0.00032956,2]
[328237523,1717083040747,-150.0,0.00032979,2]
[328237524,1717083040760,-150.0,0.00032991,2]
[328237525,1717083040773,-150.0,0.0003301,2]
[328237526,1717083040785,-150.0,0.0003303,2]
[328237527,1717083040798,-150.0,0.00033033,2]
[328237528,1717083040815,-150.0,0.0003304,2]
[328237529,1717083040830,-150.0,0.00033073,2]
[328237530,1717083040843,-150.0,0.00033079,2]
[328237531,1717083040857,-150.0,0.00033079,2]
[328237532,1717083040871,-150.0,0.00033108,2]
[328237533,1717083040882,-150.0,0.00033124,2]
[328237534,1717083040894,-10018.11,0.000333,5]
[328237535,1717083040908,-444.91275082,0.000333,5]
[328237536,1717083041057,-150.0,0.00032703,2]
[328237537,1717083041077,-150.0,0.00032859,2]
[328237539,1717083041088,-150.0,0.00032863,2]
[328237540,1717083041100,-150.0,0.0003287,2]
[328237541,1717083041110,-150.0,0.00032914,2]
[328237542,1717083041121,-18.051742,0.00033013,2]
[328237543,1717083041135,-131.948258,0.00033013,2]
[328237544,1717083041146,-150.0,0.00033018,2]
[328237545,1717083041157,-1750.57925126,0.000333,5]
[328237546,1717083041170,-379.38212814,0.000333,5]
[328237547,1717083041183,-399.37730001,0.000333,5]
[328237588,1717083042434,150.0,0.00017041,2]
[328237594,1717083043053,-150.0,0.00017094,2]
[328237595,1717083043062,-150.0,0.00017371,2]
[328237596,1717083043073,-150.0,0.00017394,2]
[328237597,1717083043085,-150.0,0.00017504,2]
[328237598,1717083043095,-150.0,0.00017585,2]
[328237599,1717083043104,-150.0,0.00017592,2]
[328237600,1717083043114,-150.0,0.00017685,2]
[328237601,1717083043123,-150.0,0.00019301,2]
[328237602,1717083043133,-150.0,0.00019441,2]
[328237603,1717083043143,-150.0,0.00019523,2]
[328237604,1717083043153,-150.0,0.00019654,2]
[328237605,1717083043162,-150.0,0.00021806,2]
[328237606,1717083043172,-150.0,0.00021824,2]
[328237607,1717083043183,-150.0,0.0002183,2]
[328237608,1717083043192,-150.0,0.00021843,2]
[328237609,1717083043202,-150.0,0.00021845,2]
[328237610,1717083043212,-150.0,0.00021848,2]
[328237611,1717083043222,-150.0,0.00021919,2]
[328237612,1717083043232,-40.25755318,0.0002197,2]
[328237613,1717083043244,-109.74244682,0.0002197,2]
[328237614,1717083043254,-150.0,0.00021988,2]
[328237615,1717083043263,-150.0,0.00021997,2]
[328237617,1717083043273,-150.0,0.00032044,2]
[328237618,1717083043283,-150.0,0.00032129,2]
[328237619,1717083043294,-150.0,0.00032137,2]
[328237620,1717083043303,-150.0,0.00032217,2]
[328237621,1717083043315,-150.0,0.00032223,2]
[328237622,1717083043325,-150.0,0.00032233,2]
[328237623,1717083043519,-150.0,0.00032246,2]
[328237624,1717083043534,-150.0,0.00032252,2]
[328237625,1717083043543,-150.0,0.00032264,2]
[328237626,1717083043553,-150.0,0.00032308,2]
[328237627,1717083043562,-150.0,0.00032439,2]
[328237628,1717083043573,-150.0,0.00032448,2]
[328237629,1717083043582,-150.0,0.00032457,2]
[328237630,1717083043591,-150.0,0.00032602,2]
[328237631,1717083043601,-150.0,0.00032644,2]
[328237632,1717083043611,-150.0,0.00032678,2]
[328237633,1717083043620,-150.0,0.00032698,2]
[328237634,1717083043630,-150.0,0.00032751,2]
[328237635,1717083043639,-150.0,0.00032764,2]
[328237636,1717083043648,-150.0,0.00032776,2]
[328237637,1717083043657,-150.0,0.00032843,2]
[328237638,1717083043666,-150.0,0.00032845,2]
[328237639,1717083043676,-150.0,0.00032868,2]
[328237640,1717083043685,-150.0,0.00032874,2]
[328237641,1717083043694,-150.0,0.00032886,2]
[328237642,1717083043704,-150.0,0.00032891,2]
[328237643,1717083043713,-150.0,0.00032922,2]
[328237644,1717083043722,-150.0,0.00032923,2]
[328237645,1717083043731,-150.0,0.00033107,2]
[328237646,1717083043741,-10099.38562583,0.000333,5]
[328237647,1717083043755,-1318.54156975,0.000333,5]
[328237648,1717083043766,-4317.15364858,0.000333,5]
[328237649,1717083043824,-150.0,0.00021819,2]
[328237650,1717083043833,-150.0,0.00021889,2]
[328237651,1717083043842,-150.0,0.00032048,2]
[328237652,1717083043851,-150.0,0.00032632,2]
[328237653,1717083043860,-150.0,0.00032676,2]
[328237654,1717083043870,-150.0,0.00032691,2]
[328237655,1717083043879,-150.0,0.00032712,2]
[328237656,1717083043888,-150.0,0.0003272,2]
[328237657,1717083043896,-150.0,0.00032731,2]
[328237658,1717083043906,-150.0,0.00032849,2]
[328237659,1717083043916,-18233.00358441,0.000333,5]
[328237660,1717083043928,-351.77856412,0.000333,5]
[328237677,1717083045947,-150.0,0.0001736,2]
[328237678,1717083045957,-150.0,0.00021841,2]
[328237679,1717083045967,-150.0,0.00032476,2]
[328237680,1717083045976,-122.05675015,0.00032481,2]
[328237681,1717083046056,-27.94324985,0.00032481,2]
[328237682,1717083046067,-150.0,0.00032493,2]
[328237684,1717083046076,-150.0,0.00032533,2]
[328237686,1717083046088,-150.0,0.00032543,2]
[328237687,1717083046097,-222.74769569,0.00032551,2]
[328237689,1717083046108,-11.23974562,0.00032556,2]
[328237690,1717083046119,-138.76025438,0.00032556,2]
[328237691,1717083046128,-150.0,0.00032558,2]
[328237693,1717083046138,-150.0,0.0003256,2]
[328237694,1717083046147,-150.0,0.00032635,2]
[328237696,1717083046157,-150.0,0.00032638,2]
[328237697,1717083046166,-28.21974562,0.00032645,2]
[328237698,1717083046178,-121.78025438,0.00032645,2]
[328237700,1717083046187,-150.0,0.00032647,2]
[328237702,1717083046197,-150.0,0.00032673,2]
[328237703,1717083046206,-150.0,0.00032674,2]
[328237706,1717083046216,-150.0,0.00032676,2]
[328237708,1717083046226,-150.0,0.00032682,2]
[328237711,1717083046236,-150.0,0.00032686,2]
[328237714,1717083046245,-150.0,0.00032693,2]
[328237716,1717083046254,-150.0,0.00032726,2]
[328237719,1717083046263,-150.0,0.00032755,2]
[328237721,1717083046272,-150.0,0.00032769,2]
[328237724,1717083046281,-150.0,0.00032777,2]
[328237726,1717083046291,-150.0,0.00032783,2]
[328237729,1717083046300,-150.0,0.00032796,2]
[328237731,1717083046310,-150.0,0.00032801,2]
[328237734,1717083046323,-150.0,0.00032802,2]
[328237737,1717083046332,-150.0,0.00032807,2]
[328237739,1717083046342,-150.0,0.00032812,2]
[328237742,1717083046351,-150.0,0.00032819,2]
[328237744,1717083046360,-150.0,0.00032829,2]
[328237746,1717083046369,-150.0,0.00032839,2]
[328237748,1717083046378,-150.0,0.00032857,2]
[328237750,1717083046387,-150.0,0.00032863,2]
[328237752,1717083046396,-2913.79222309,0.00033299,2]
[328237754,1717083046408,-256.28896115,0.00033299,2]
[328237759,1717083046440,-1643.0,0.00032028,2]
[328237761,1717083046449,-150.0,0.00032576,2]
[328237763,1717083046458,-150.0,0.00032718,2]
[328237764,1717083046466,-150.0,0.00032751,2]
[328237767,1717083046476,-2051.44164472,0.00033299,2]
[328237769,1717083046485,-7388.91665293,0.000333,5]
[328237771,1717083046496,-319.50316463,0.000333,5]
[328237773,1717083046508,-415.56917696,0.000333,5]
[328237966,1717083087042,-217.18864147,0.00017147,2]
[328237967,1717083107359,171.91,0.00013973,2]
[328237968,1717083141628,1040.4552301,0.00014,2]
[328237969,1717083149907,8095.78278903,0.00017259,2]
[328237971,1717083171339,500.0,0.000185,2]
[328237972,1717083184438,1500.0,0.00030137,30]
[328237973,1717083223986,5554.34072043,0.00014,2]
[328237974,1717083224024,12398.64178915,0.00014,2]
[328237975,1717083224055,1003690.43260254,0.00014,2]
[328237976,1717083224095,30000.0,0.00014,2]
[328237977,1717083252725,259.1,0.00011,2]
[328237978,1717083369907,-714.24731743,0.00013996,2]
[328237979,1717083369930,-900.89185857,0.00013997,2]
[328237980,1717083369952,-1789.09722972,0.00013998,2]
[328237981,1717083369975,-883.0724361,0.00013998,2]
[328237982,1717083369997,-500.0,0.00013999,2]
[328237983,1717083370021,-150.0,0.00013999,2]
[328237984,1717083370049,-3251210.09265818,0.00014,2]
[328237985,1717083390417,1991.92965368,0.00011,2]
[328237986,1717083394516,958.10487205,0.0001045,2]
[328237987,1717083397634,46790.86547427,0.00013,2]
[328237988,1717083399134,425.1895654,0.00012598,2]
[328237990,1717083444803,184.66,0.00010959,2]
[328237991,1717083663187,500.0,0.00011,2]
[328237992,1717083663623,500.0,0.00011,2]
[328237993,1717083664213,721.0,0.00011,2]
[328237994,1717083664692,500.0,0.00011,2]
[328237995,1717083665059,500.0,0.00011,2]
[328237996,1717083665412,500.0,0.00011,2]
[328237997,1717083665773,500.0,0.00011,2]
[328237998,1717083666129,500.0,0.00011,2]
[328237999,1717083666505,500.0,0.00011,2]
[328238000,1717083666968,500.0,0.00011,2]
[328238001,1717083667453,609.0,0.00011,2]
[328238002,1717083764362,-714.24731743,0.00012985,2]
[328238003,1717083764384,-155.0,0.00012986,2]
[328238004,1717083764406,-70.75268257,0.00012989,2]
[328238005,1717083803309,-79.24731743,0.00012989,2]
[328238006,1717083803331,-169.23736144,0.0001299,2]
[328238007,1717083803357,-169.23736144,0.0001299,2]
[328238008,1717083803380,-152.67,0.0001299,2]
[328238009,1717083803404,-152.67,0.0001299,2]
[328238010,1717083803427,-152.67,0.0001299,2]
[328238011,1717083803451,-152.67,0.0001299,2]
[328238012,1717083803473,-152.67,0.0001299,2]
[328238013,1717083803502,-152.67,0.0001299,2]
[328238014,1717083803525,-152.67,0.0001299,2]
[328238015,1717083803547,-152.67,0.0001299,2]
[328238016,1717083803571,-152.67,0.0001299,2]
[328238017,1717083803594,-152.67,0.0001299,2]
[328238018,1717083803616,-152.67,0.0001299,2]
[328238019,1717083803639,-152.67,0.0001299,2]
[328238020,1717083803661,-152.67,0.0001299,2]
[328238021,1717083803684,-152.67,0.0001299,2]
[328238022,1717083803707,-152.67,0.0001299,2]
[328238023,1717083803731,-152.67,0.0001299,2]
[328238024,1717083803757,-152.67,0.0001299,2]
[328238025,1717083803781,-152.67,0.0001299,2]
[328238026,1717083803804,-152.67,0.0001299,2]
[328238027,1717083803828,-152.67,0.0001299,2]
[328238028,1717083803849,-152.67,0.0001299,2]
[328238029,1717083803872,-152.67,0.0001299,2]
[328238030,1717083803894,-152.67,0.0001299,2]
[328238031,1717083803918,-152.67,0.0001299,2]
[328238032,1717083803939,-152.67,0.0001299,2]
[328238033,1717083803960,-152.67,0.0001299,2]
[328238034,1717083803983,-152.67,0.0001299,2]
[328238035,1717083804003,-152.67,0.0001299,2]
[328238036,1717083804024,-152.67,0.0001299,2]
[328238037,1717083804235,-152.67,0.0001299,2]
[328238038,1717083804258,-2.17795969,0.0001299,2]
[328238039,1717083804300,-150.49204031,0.0001299,2]
[328238040,1717083804323,-152.67,0.0001299,2]
[328238041,1717083804345,-152.67,0.0001299,2]
[328238042,1717083804367,-229.48466464,0.0001299,2]
[328238043,1717083804388,-321.18266294,0.0001299,2]
[328238044,1717083804410,-1098.55992741,0.0001299,2]
[328238045,1717083804432,-155.0,0.00012998,2]
[328238046,1717083804455,-714.24731743,0.00012999,2]
[328238047,1717083804476,-2025.69338727,0.00013,2]
[328238048,1717083804534,218.1644335,0.00012922,2]
[328238049,1717083804560,-5000.0,0.00013,2]
[328238050,1717083804593,-5000.0,0.00013,2]
[328238051,1717083805044,-5000.0,0.00013,2]
[328238052,1717083805398,-5000.0,0.00013,2]
[328238053,1717083805753,-5000.0,0.00013,2]
[328238054,1717083806047,-5000.0,0.00013,2]
[328238055,1717083806374,-5000.0,0.00013,2]
[328238056,1717083806715,-5000.0,0.00013,2]
[328238057,1717083807326,-5000.0,0.00013,2]
[328238058,1717083807699,-5000.0,0.00013,2]
[328238059,1717083807997,-5000.0,0.00013,2]
[328238060,1717083808330,-5000.0,0.00013,2]
[328238061,1717083808658,-5000.0,0.00013,2]
[328238062,1717083808971,-5000.0,0.00013,2]
[328238063,1717083809316,-5000.0,0.00013,2]
[328238064,1717083809889,-5000.0,0.00013,2]
[328238065,1717083810332,-5000.0,0.00013,2]
[328238066,1717083810922,-5000.0,0.00013,2]
[328238067,1717083811253,-5000.0,0.00013,2]
[328238068,1717083811959,-5000.0,0.00013,2]
[328238069,1717083812382,-5000.0,0.00013,2]
[328238070,1717083812703,-5000.0,0.00013,2]
[328238071,1717083813044,-5000.0,0.00013,2]
[328238072,1717083813549,-5000.0,0.00013,2]
[328238073,1717083813765,-5000.0,0.00013,2]
[328238074,1717083814450,-5000.0,0.00013,2]
[328238075,1717083815111,-5000.0,0.00013,2]
[328238076,1717083815717,-5000.0,0.00013,2]
[328238077,1717083844165,236.9860011,0.00012922,2]
[328238078,1717083884246,-3503.56008426,0.00012922,2]
[328238079,1717083884268,-152.98977644,0.00012922,2]
[328238080,1717083884289,-321.18266294,0.00012922,2]
[328238081,1717083884313,-537.35979591,0.00012999,2]
[328238082,1717083884335,-18484.90768045,0.00013,2]
[328238083,1717083915973,-335.0,0.00012922,2]
[328238084,1717083926222,-504.58470251,0.00012348,2]
[328238085,1717083926244,-4495.41529749,0.00012922,2]
[328238086,1717083926849,-5000.0,0.00012922,2]
[328238087,1717083927506,-5000.0,0.00012922,2]
[328238088,1717083928152,-4921.16104478,0.00012922,2]
[328238089,1717083928173,-78.83895522,0.00012922,2]
[328238090,1717083948279,-3000.0,0.00012922,2]
[328238093,1717084131072,2057.76,0.00011944,2]
[328238094,1717084155970,250.0,0.00011814,2]
[328238095,1717084156907,924.03,0.00011908,2]
[328238096,1717084166115,-544.72756964,0.00012396,2]
[328238097,1717084166136,-657.69774283,0.00012397,2]
[328238098,1717084166156,-155.0,0.00012397,2]
[328238099,1717084166177,-340.31,0.00012398,2]
[328238100,1717084166198,-1232.41548753,0.0001241,2]
[328238101,1717084166773,768.21,0.00011814,2]
[328238102,1717084166794,4000.0,0.00011814,2]
[328238103,1717084166814,4000.0,0.00011814,2]
[328238104,1717084166835,4000.0,0.00011814,2]
[328238105,1717084166856,4000.0,0.00011814,2]
[328238106,1717084166878,4000.0,0.00011814,2]
[328238107,1717084166900,4000.0,0.00011814,2]
[328238108,1717084166921,2586.6,0.00011814,2]
[328238109,1717084186539,356.17943807,0.00011223,2]
[328238110,1717084193165,1057.22056193,0.00011814,2]
[328238111,1717084193187,4000.0,0.00011814,2]
[328238112,1717084193209,4000.0,0.00011814,2]
[328238121,1717084232371,-3963.16224194,0.00011814,2]
[328238122,1717084232382,-1260.50756707,0.00011814,2]
[328238123,1717084232394,-5961.53771592,0.00011814,2]
[328238124,1717084232403,-17666.89743044,0.00011814,2]
[328238125,1717084232412,-155.0,0.00011814,2]
[328238126,1717084232422,-24641.78950231,0.00011814,2]
[328238127,1717084232432,-63369.76056941,0.00011814,2]
[328238128,1717084232444,-440.96,0.00011825,3]
[328238129,1717084232454,-322.89,0.00011837,2]
[328238130,1717084232463,-1584.35927712,0.0001241,2]
[328238131,1717084232473,-308.53216019,0.00012411,2]
[328238132,1717084232483,-563.16,0.00012412,2]
[328238133,1717084232492,-340.31,0.00012432,2]
[328238134,1717084232501,-340.31,0.00012466,2]
[328238135,1717084232511,-23900.0,0.00012474,2]
[328238136,1717084232522,-340.31,0.000125,2]
[328238137,1717084232531,-340.31,0.00012534,2]
[328238138,1717084232540,-340.31,0.00012568,2]
[328238139,1717084232551,-340.31,0.00012602,2]
[328238140,1717084232561,-3028.01,0.00012606,2]
[328238141,1717084232570,-340.31,0.00012636,2]
[328238142,1717084232580,-340.31,0.0001267,2]
[328238143,1717084232589,-340.31,0.00012704,2]
[328238144,1717084232600,-340.31,0.00012738,2]
[328238145,1717084232611,-200.0,0.00012763,2]
[328238146,1717084232620,-340.31,0.00012772,2]